Workbook

Sheet Tabelle1
A1: lambda= | B1: 6.3e-07 | C1: Wellenlänge | F1: Intensitätsberechnung für 0 <= alpha <= 4 Lamda/d
A2: dy= | B2: =1/D2*2 -> 0.005 | C2: (als Anteil von r) | D2: 400 | E2: Streifen, Erregerzentren auf Durchmesser; berechnet zu einer Seite, also 200 Stück
A3: Belendendurchmesser: 2 | C3: (facher Radius)
A4: d= | B4: 0.0002 | C4: (m)
A5: www.schulphysik.de/strutz/Kreisblende.pdf | F5: Erläuterung zum Faktor 1,22 bei der Kreisblende
A6: vgl. Metzler S. 310
A8: Nummer | B8: Intensität | C8: alpha | D8: dphi | E8: alpha/(k/d)
A9: 0 | B9: =intensi(D9,$B$2) -> 314.0761295 | C9: =A9*0.01*$B$1/($B$4/2) -> 0 | D9: =2*PI()/$B$1*$B$2*$B$4/2*SIN(C9) -> 0 | E9: =C9/($B$1/2)*$B$4/2 -> 0
A10: 1 | B10: =intensi(D10,$B$2) -> 313.766399 | C10: =A10*0.01*$B$1/($B$4/2) -> 6.3e-05 | D10: =2*PI()/$B$1*$B$2*$B$4/2*SIN(C10) -> 0.0003141592652 | E10: =C10/($B$1/2)*$B$4/2 -> 0.02
A11: 2 | B11: 312.8387341 | C11: 0.000126 | D11: 0.0006283185291 | E11: 0.04
A12: 3 | B12: 311.2977042 | C12: 0.000189 | D12: 0.0009424777905 | E12: 0.06
A13: 4 | B13: 309.1508901 | C13: 0.000252 | D13: 0.001256637048 | E13: 0.08
A14: 5 | B14: 306.4088314 | C14: 0.000315 | D14: 0.001570796301 | E14: 0.1
A15: 6 | B15: 303.0849543 | C15: 0.000378 | D15: 0.001884955547 | E15: 0.12
A16: 7 | B16: 299.1954793 | C16: 0.000441 | D16: 0.002199114786 | E16: 0.14
A17: 8 | B17: 294.7593102 | C17: 0.000504 | D17: 0.002513274016 | E17: 0.16
A18: 9 | B18: 289.7979048 | C18: 0.000567 | D18: 0.002827433237 | E18: 0.18
A19: 10 | B19: 284.3351288 | C19: 0.00063 | D19: 0.003141592446 | E19: 0.2
A20: 11 | B20: 278.3970943 | C20: 0.000693 | D20: 0.003455751642 | E20: 0.22
A21: 12 | B21: 272.0119829 | C21: 0.000756 | D21: 0.003769910825 | E21: 0.24
A22: 13 | B22: 265.2098574 | C22: 0.000819 | D22: 0.004084069993 | E22: 0.26
A23: 14 | B23: 258.0224599 | C23: 0.000882 | D23: 0.004398229145 | E23: 0.28
A24: 15 | B24: 250.4830023 | C24: 0.000945 | D24: 0.004712388279 | E24: 0.3
A25: 16 | B25: 242.6259471 | C25: 0.001008 | D25: 0.005026547395 | E25: 0.32
A26: 17 | B26: 234.4867823 | C26: 0.001071 | D26: 0.00534070649 | E26: 0.34
A27: 18 | B27: 226.1017919 | C27: 0.001134 | D27: 0.005654865564 | E27: 0.36
A28: 19 | B28: 217.5078232 | C28: 0.001197 | D28: 0.005969024616 | E28: 0.38
A29: 20 | B29: 208.7420536 | C29: 0.00126 | D29: 0.006283183645 | E29: 0.4
A30: 21 | B30: 199.8417574 | C30: 0.001323 | D30: 0.006597342648 | E30: 0.42
A31: 22 | B31: 190.8440767 | C31: 0.001386 | D31: 0.006911501625 | E31: 0.44
A32: 23 | B32: 181.7857947 | C32: 0.001449 | D32: 0.007225660575 | E32: 0.46
A33: 24 | B33: 172.703117 | C33: 0.001512 | D33: 0.007539819496 | E33: 0.48
A34: 25 | B34: 163.631459 | C34: 0.001575 | D34: 0.007853978387 | E34: 0.5
A35: 26 | B35: 154.6052436 | C35: 0.001638 | D35: 0.008168137247 | E35: 0.52
A36: 27 | B36: 145.657709 | C36: 0.001701 | D36: 0.008482296074 | E36: 0.54
A37: 28 | B37: 136.8207287 | C37: 0.001764 | D37: 0.008796454868 | E37: 0.56
A38: 29 | B38: 128.1246444 | C38: 0.001827 | D38: 0.009110613627 | E38: 0.58
A39: 30 | B39: 119.5981136 | C39: 0.00189 | D39: 0.00942477235 | E39: 0.6
A40: 31 | B40: 111.2679725 | C40: 0.001953 | D40: 0.009738931035 | E40: 0.62
A41: 32 | B41: 103.1591142 | C41: 0.002016 | D41: 0.01005308968 | E41: 0.64
A42: 33 | B42: 95.29438427 | C42: 0.002079 | D42: 0.01036724829 | E42: 0.66
A43: 34 | B43: 87.69449355 | C43: 0.002142 | D43: 0.01068140685 | E43: 0.68
A44: 35 | B44: 80.37794807 | C44: 0.002205 | D44: 0.01099556538 | E44: 0.7
A45: 36 | B45: 73.36099704 | C45: 0.002268 | D45: 0.01130972386 | E45: 0.72
A46: 37 | B46: 66.65759852 | C46: 0.002331 | D46: 0.01162388229 | E46: 0.74
A47: 38 | B47: 60.27940282 | C47: 0.002394 | D47: 0.01193804068 | E47: 0.76
A48: 39 | B48: 54.23575323 | C48: 0.002457 | D48: 0.01225219902 | E48: 0.78
A49: 40 | B49: 48.53370383 | C49: 0.00252 | D49: 0.01256635731 | E49: 0.8
A50: 41 | B50: 43.17805376 | C50: 0.002583 | D50: 0.01288051556 | E50: 0.82
A51: 42 | B51: 38.17139723 | C51: 0.002646 | D51: 0.01319467375 | E51: 0.84
A52: 43 | B52: 33.51418855 | C52: 0.002709 | D52: 0.01350883189 | E52: 0.86
A53: 44 | B53: 29.2048212 | C53: 0.002772 | D53: 0.01382298997 | E53: 0.88
A54: 45 | B54: 25.23972001 | C54: 0.002835 | D54: 0.014137148 | E54: 0.9
A55: 46 | B55: 21.61344523 | C55: 0.002898 | D55: 0.01445130598 | E55: 0.92
A56: 47 | B56: 18.31880742 | C56: 0.002961 | D56: 0.0147654639 | E56: 0.94
A57: 48 | B57: 15.34699181 | C57: 0.003024 | D57: 0.01507962175 | E57: 0.96
A58: 49 | B58: 12.68769088 | C58: 0.003087 | D58: 0.01539377955 | E58: 0.98
A59: 50 | B59: 10.32924382 | C59: 0.00315 | D59: 0.01570793729 | E59: 1
A60: 51 | B60: 8.25878146 | C60: 0.003213 | D60: 0.01602209497 | E60: 1.02
A61: 52 | B61: 6.462375303 | C61: 0.003276 | D61: 0.01633625258 | E61: 1.04
A62: 53 | B62: 4.925189254 | C62: 0.003339 | D62: 0.01665041012 | E62: 1.06
A63: 54 | B63: 3.631632716 | C63: 0.003402 | D63: 0.01696456761 | E63: 1.08
A64: 55 | B64: 2.565513646 | C64: 0.003465 | D64: 0.01727872502 | E64: 1.1
A65: 56 | B65: 1.710190304 | C65: 0.003528 | D65: 0.01759288236 | E65: 1.12
A66: 57 | B66: 1.048720402 | C66: 0.003591 | D66: 0.01790703964 | E66: 1.14
A67: 58 | B67: 0.5640064633 | C67: 0.003654 | D67: 0.01822119684 | E67: 1.16
A68: 59 | B68: 0.2389362545 | C68: 0.003717 | D68: 0.01853535398 | E68: 1.18
A69: 60 | B69: 0.0565172371 | C69: 0.00378 | D69: 0.01884951103 | E69: 1.2
A70: 61 | B70: 4.067745872e-06 | C70: 0.003843 | D70: 0.01916366802 | E70: 1.22
A71: 62 | B71: 0.05301827377 | C71: 0.003906 | D71: 0.01947782492 | E71: 1.24
A72: 63 | B72: 0.1996593303 | C72: 0.003969 | D72: 0.01979198175 | E72: 1.26
A73: 64 | B73: 0.4246064684 | C73: 0.004032 | D73: 0.02010613851 | E73: 1.28
A74: 65 | B74: =intensi(D74,$B$2) -> 0.7132106535 | C74: =A74*0.01*$B$1/($B$4/2) -> 0.004095 | D74: =2*PI()/$B$1*$B$2*$B$4/2*SIN(C74) -> 0.02042029518 | E74: =C74/($B$1/2)*$B$4/2 -> 1.3
A75: 66 | B75: 1.051576283 | C75: 0.004158 | D75: 0.02073445177 | E75: 1.32
A76: 67 | B76: 1.426632265 | C76: 0.004221 | D76: 0.02104860828 | E76: 1.34
A77: 68 | B77: 1.826192254 | C77: 0.004284 | D77: 0.0213627647 | E77: 1.36
A78: 69 | B78: 2.23900392 | C78: 0.004347 | D78: 0.02167692104 | E78: 1.38
A79: 70 | B79: 2.654787264 | C79: 0.00441 | D79: 0.02199107729 | E79: 1.4
A80: 71 | B80: 3.064262054 | C80: 0.004473 | D80: 0.02230523346 | E80: 1.42
A81: 72 | B81: 3.45916461 | C81: 0.004536 | D81: 0.02261938954 | E81: 1.44
A82: 73 | B82: 3.832254214 | C82: 0.004599 | D82: 0.02293354553 | E82: 1.46
A83: 74 | B83: 4.177309551 | C83: 0.004662 | D83: 0.02324770142 | E83: 1.48
A84: 75 | B84: 4.48911565 | C84: 0.004725 | D84: 0.02356185723 | E84: 1.5
A85: 76 | B85: 4.763441859 | C85: 0.004788 | D85: 0.02387601294 | E85: 1.52
A86: 77 | B86: 4.997011505 | C86: 0.004851 | D86: 0.02419016856 | E86: 1.54
A87: 78 | B87: 5.187463883 | C87: 0.004914 | D87: 0.02450432408 | E87: 1.56
A88: 79 | B88: 5.333309325 | C88: 0.004977 | D88: 0.0248184795 | E88: 1.58
A89: 80 | B89: 5.433878111 | C89: 0.00504 | D89: 0.02513263483 | E89: 1.6
A90: 81 | B90: 5.489264033 | C90: 0.005103 | D90: 0.02544679005 | E90: 1.62
A91: 82 | B91: 5.500263425 | C91: 0.005166 | D91: 0.02576094518 | E91: 1.64
A92: 83 | B92: 5.468310517 | C92: 0.005229 | D92: 0.0260751002 | E92: 1.66
A93: 84 | B93: 5.395409946 | C93: 0.005292 | D93: 0.02638925512 | E93: 1.68
A94: 85 | B94: 5.284067265 | C94: 0.005355 | D94: 0.02670340993 | E94: 1.7
A95: 86 | B95: 5.13721828 | C95: 0.005418 | D95: 0.02701756464 | E95: 1.72
A96: 87 | B96: 4.958158024 | C96: 0.005481 | D96: 0.02733171924 | E96: 1.74
A97: 88 | B97: 4.750470131 | C97: 0.005544 | D97: 0.02764587373 | E97: 1.76
A98: 89 | B98: 4.517957361 | C98: 0.005607 | D98: 0.02796002811 | E98: 1.78
A99: 90 | B99: 4.264573969 | C99: 0.00567 | D99: 0.02827418238 | E99: 1.8
A100: 91 | B100: 3.994360554 | C100: 0.005733 | D100: 0.02858833654 | E100: 1.82
A101: 92 | B101: 3.711381995 | C101: 0.005796 | D101: 0.02890249059 | E101: 1.84
A102: 93 | B102: 3.419668998 | C102: 0.005859 | D102: 0.02921664452 | E102: 1.86
A103: 94 | B103: 3.123163718 | C103: 0.005922 | D103: 0.02953079834 | E103: 1.88
A104: 95 | B104: 2.825669875 | C104: 0.005985 | D104: 0.02984495203 | E104: 1.9
A105: 96 | B105: 2.53080769 | C105: 0.006048 | D105: 0.03015910561 | E105: 1.92
A106: 97 | B106: 2.241973902 | C106: 0.006111 | D106: 0.03047325907 | E106: 1.94
A107: 98 | B107: 1.96230709 | C107: 0.006174 | D107: 0.03078741241 | E107: 1.96
A108: 99 | B108: 1.694658398 | C108: 0.006237 | D108: 0.03110156563 | E108: 1.98
A109: 100 | B109: 1.44156775 | C109: 0.0063 | D109: 0.03141571872 | E109: 2
A110: 101 | B110: 1.205245537 | C110: 0.006363 | D110: 0.03172987169 | E110: 2.02
A111: 102 | B111: 0.9875597198 | C111: 0.006426 | D111: 0.03204402453 | E111: 2.04
A112: 103 | B112: 0.7900282071 | C112: 0.006489 | D112: 0.03235817725 | E112: 2.06
A113: 104 | B113: 0.6138163423 | C113: 0.006552 | D113: 0.03267232983 | E113: 2.08
A114: 105 | B114: 0.4597392523 | C114: 0.006615 | D114: 0.03298648229 | E114: 2.1
A115: 106 | B115: 0.3282687813 | C115: 0.006678 | D115: 0.03330063462 | E115: 2.12
A116: 107 | B116: 0.2195446857 | C116: 0.006741 | D116: 0.03361478681 | E116: 2.14
A117: 108 | B117: 0.1333897285 | C117: 0.006804 | D117: 0.03392893887 | E117: 2.16
A118: 109 | B118: 0.06932828398 | C118: 0.006867 | D118: 0.0342430908 | E118: 2.18
A119: 110 | B119: 0.02660803431 | C119: 0.00693 | D119: 0.03455724259 | E119: 2.2
A120: 111 | B120: 0.004224325521 | C120: 0.006993 | D120: 0.03487139424 | E120: 2.22
A121: 112 | B121: 0.0009467328389 | C121: 0.007056 | D121: 0.03518554575 | E121: 2.24
A122: 113 | B122: 0.01534738113 | C122: 0.007119 | D122: 0.03549969713 | E122: 2.26
A123: 114 | B123: 0.0458305636 | C123: 0.007182 | D123: 0.03581384836 | E123: 2.28
A124: 115 | B124: 0.09066320637 | C124: 0.007245 | D124: 0.03612799945 | E124: 2.3
A125: 116 | B125: 0.1480057362 | C125: 0.007308 | D125: 0.0364421504 | E125: 2.32
A126: 117 | B126: 0.2159429234 | C126: 0.007371 | D126: 0.03675630121 | E126: 2.34
A127: 118 | B127: 0.2925142905 | C127: 0.007434 | D127: 0.03707045186 | E127: 2.36
A128: 119 | B128: 0.3757437024 | C128: 0.007497 | D128: 0.03738460238 | E128: 2.38
A129: 120 | B129: 0.4636677792 | C129: 0.00756 | D129: 0.03769875274 | E129: 2.4
A130: 121 | B130: 0.5543628059 | C130: 0.007623 | D130: 0.03801290295 | E130: 2.42
A131: 122 | B131: 0.6459698442 | C131: 0.007686 | D131: 0.03832705301 | E131: 2.44
A132: 123 | B132: 0.7367177906 | C132: 0.007749 | D132: 0.03864120292 | E132: 2.46
A133: 124 | B133: 0.8249441606 | C133: 0.007812 | D133: 0.03895535268 | E133: 2.48
A134: 125 | B134: 0.909113419 | C134: 0.007875 | D134: 0.03926950228 | E134: 2.5
A135: 126 | B135: 0.987832716 | C135: 0.007938 | D135: 0.03958365173 | E135: 2.52
A136: 127 | B136: 1.059864929 | C136: 0.008001 | D136: 0.03989780101 | E136: 2.54
A137: 128 | B137: 1.124138949 | C137: 0.008064 | D137: 0.04021195014 | E137: 2.56
A138: 129 | B138: =intensi(D138,$B$2) -> 1.179757191 | C138: =A138*0.01*$B$1/($B$4/2) -> 0.008127 | D138: =2*PI()/$B$1*$B$2*$B$4/2*SIN(C138) -> 0.04052609912 | E138: =C138/($B$1/2)*$B$4/2 -> 2.58
A139: 130 | B139: 1.226000347 | C139: 0.00819 | D139: 0.04084024793 | E139: 2.6
A140: 131 | B140: 1.262329429 | C140: 0.008253 | D140: 0.04115439657 | E140: 2.62
A141: 132 | B141: 1.288385192 | C141: 0.008316 | D141: 0.04146854506 | E141: 2.64
A142: 133 | B142: 1.30398506 | C142: 0.008379 | D142: 0.04178269338 | E142: 2.66
A143: 134 | B143: 1.30911769 | C143: 0.008442 | D143: 0.04209684153 | E143: 2.68
A144: 135 | B144: 1.303935359 | C144: 0.008505 | D144: 0.04241098952 | E144: 2.7
A145: 136 | B145: 1.288744367 | C145: 0.008568 | D145: 0.04272513734 | E145: 2.72
A146: 137 | B146: 1.263993662 | C146: 0.008631 | D146: 0.04303928499 | E146: 2.74
A147: 138 | B147: 1.230261932 | C147: 0.008694 | D147: 0.04335343247 | E147: 2.76
A148: 139 | B148: 1.188243388 | C148: 0.008757 | D148: 0.04366757977 | E148: 2.78
A149: 140 | B149: 1.138732513 | C149: 0.00882 | D149: 0.0439817269 | E149: 2.8
A150: 141 | B150: 1.082608 | C150: 0.008883 | D150: 0.04429587386 | E150: 2.82
A151: 142 | B151: 1.020816168 | C151: 0.008946 | D151: 0.04461002065 | E151: 2.84
A152: 143 | B152: 0.9543540859 | C152: 0.009009 | D152: 0.04492416725 | E152: 2.86
A153: 144 | B153: 0.8842526606 | C153: 0.009072 | D153: 0.04523831368 | E153: 2.88
A154: 145 | B154: 0.8115599315 | C154: 0.009135 | D154: 0.04555245993 | E154: 2.9
A155: 146 | B155: 0.7373247916 | C155: 0.009198 | D155: 0.04586660599 | E155: 2.92
A156: 147 | B156: 0.6625813521 | C156: 0.009261 | D156: 0.04618075188 | E156: 2.94
A157: 148 | B157: 0.5883341448 | C157: 0.009324 | D157: 0.04649489758 | E157: 2.96
A158: 149 | B158: 0.5155443398 | C158: 0.009387 | D158: 0.0468090431 | E158: 2.98
A159: 150 | B159: 0.4451171335 | C159: 0.00945 | D159: 0.04712318843 | E159: 3
A160: 151 | B160: 0.3778904428 | C160: 0.009513 | D160: 0.04743733357 | E160: 3.02
A161: 152 | B161: 0.3146250152 | C161: 0.009576 | D161: 0.04775147853 | E161: 3.04
A162: 153 | B162: 0.2559960422 | C162: 0.009639 | D162: 0.04806562329 | E162: 3.06
A163: 154 | B163: 0.20258634 | C163: 0.009702 | D163: 0.04837976787 | E163: 3.08
A164: 155 | B164: 0.1548811362 | C164: 0.009765 | D164: 0.04869391225 | E164: 3.1
A165: 156 | B165: 0.1132644757 | C165: 0.009828 | D165: 0.04900805644 | E165: 3.12
A166: 157 | B166: 0.07801724081 | C166: 0.009891 | D166: 0.04932220044 | E166: 3.14
A167: 158 | B167: 0.04931675194 | C167: 0.009954 | D167: 0.04963634424 | E167: 3.16
A168: 159 | B168: 0.02723789864 | C168: 0.010017 | D168: 0.04995048784 | E168: 3.18
A169: 160 | B169: 0.01175572908 | C169: 0.01008 | D169: 0.05026463125 | E169: 3.2
A170: 161 | B170: 0.002749408116 | C170: 0.010143 | D170: 0.05057877445 | E170: 3.22
A171: 162 | B171: 7.438301414e-06 | C171: 0.010206 | D171: 0.05089291746 | E171: 3.24
A172: 163 | B172: 0.003234023637 | C172: 0.010269 | D172: 0.05120706026 | E172: 3.26
A173: 164 | B173: 0.01205644391 | C173: 0.010332 | D173: 0.05152120286 | E173: 3.28
A174: 165 | B174: 0.02603329769 | C174: 0.010395 | D174: 0.05183534525 | E174: 3.3
A175: 166 | B175: 0.04466346447 | C175: 0.010458 | D175: 0.05214948744 | E175: 3.32
A176: 167 | B176: 0.06739563132 | C176: 0.010521 | D176: 0.05246362942 | E176: 3.34
A177: 168 | B177: 0.09363822667 | C177: 0.010584 | D177: 0.0527777712 | E177: 3.36
A178: 169 | B178: 0.1227696031 | C178: 0.010647 | D178: 0.05309191276 | E178: 3.38
A179: 170 | B179: 0.1541483128 | C179: 0.01071 | D179: 0.05340605412 | E179: 3.4
A180: 171 | B180: 0.1871233241 | C180: 0.010773 | D180: 0.05372019526 | E180: 3.42
A181: 172 | B181: 0.2210440308 | C181: 0.010836 | D181: 0.05403433619 | E181: 3.44
A182: 173 | B182: 0.2552699178 | C182: 0.010899 | D182: 0.0543484769 | E182: 3.46
A183: 174 | B183: 0.2891797521 | C183: 0.010962 | D183: 0.0546626174 | E183: 3.48
A184: 175 | B184: 0.3221801813 | C184: 0.011025 | D184: 0.05497675768 | E184: 3.5
A185: 176 | B185: 0.3537136347 | C185: 0.011088 | D185: 0.05529089774 | E185: 3.52
A186: 177 | B186: 0.3832654329 | C186: 0.011151 | D186: 0.05560503759 | E186: 3.54
A187: 178 | B187: 0.4103700295 | C187: 0.011214 | D187: 0.05591917721 | E187: 3.56
A188: 179 | B188: 0.4346163206 | C188: 0.011277 | D188: 0.05623331661 | E188: 3.58
A189: 180 | B189: 0.4556519751 | C189: 0.01134 | D189: 0.05654745579 | E189: 3.6
A190: 181 | B190: 0.4731867538 | C190: 0.011403 | D190: 0.05686159474 | E190: 3.62
A191: 182 | B191: 0.4869948009 | C191: 0.011466 | D191: 0.05717573347 | E191: 3.64
A192: 183 | B192: 0.496915907 | C192: 0.011529 | D192: 0.05748987197 | E192: 3.66
A193: 184 | B193: 0.5028557574 | C193: 0.011592 | D193: 0.05780401024 | E193: 3.68
A194: 185 | B194: 0.5047851944 | C194: 0.011655 | D194: 0.05811814829 | E194: 3.7
A195: 186 | B195: 0.5027385347 | C195: 0.011718 | D195: 0.0584322861 | E195: 3.72
A196: 187 | B196: 0.4968109969 | C196: 0.011781 | D196: 0.05874642368 | E196: 3.74
A197: 188 | B197: 0.4871553035 | C197: 0.011844 | D197: 0.05906056103 | E197: 3.76
A198: 189 | B198: 0.4739775336 | C198: 0.011907 | D198: 0.05937469814 | E198: 3.78
A199: 190 | B199: 0.4575323105 | C199: 0.01197 | D199: 0.05968883502 | E199: 3.8
A200: 191 | B200: 0.4381174145 | C200: 0.012033 | D200: 0.06000297166 | E200: 3.82
A201: 192 | B201: 0.4160679192 | C201: 0.012096 | D201: 0.06031710806 | E201: 3.84
... 8 more rows

Sheet Tabelle2

Sheet Tabelle3
